Cogmind - Beta 13 @@@ ROGUE MODE // 2024.04.05 @ 13:41:38 Player: Papweer Result: Destroyed by KH-38M(R) with Subdweller Laser Performance ------------- Evolutions (0) 0 Regions Visited (3) 600 Robots Destroyed (30) 150 Value Destroyed (766) 766 Prototype IDs (1) 20 Alien Tech Used (0) 0 Bonus (0) 0 TOTAL SCORE: 1536 Bonus ------- None Cogmind --------- Core Integrity 0/250 Matter 272/300 Energy 280/280 System Corruption 0% Temperature Cool (6) Movement Core (550) Ox10 Location -10/Subcaves Parts ------- > --- POWER (1) -------- Heavy Ion Engine > --- PROPULSION (2) --- (None) > --- UTILITY (2) ------ Large Storage Unit Signal Interpreter > --- WEAPON (2) ------- Light Assault Rifle Autogun > --- INVENTORY (15) --- Ion Engine Improved Ion Engine Improved Ion Engine Heavy Ion Engine ECM Suite Autogun Peak State ------------ > --- POWER ------------ Heavy Ion Engine > --- PROPULSION ------- Aluminum Leg Aluminum Leg > --- UTILITY ---------- Large Storage Unit Signal Interpreter > --- WEAPON ----------- Ion Cannon Rocket Launcher > --- INVENTORY -------- Ion Engine Improved Ion Engine Improved Ion Engine Heavy Ion Engine Light Treads ECM Suite Light Assault Rifle Autogun Autogun [Rating: 13] Favorites ----------- Power Heavy Ion Engine Engine Heavy Ion Engine Propulsion Aluminum Leg Treads Light Treads Leg Aluminum Leg Utility Signal Interpreter Device ECM Suite Storage Large Storage Unit Processor Signal Interpreter Weapon Beam Cannon Energy Cannon Beam Cannon Ballistic Gun Assault Rifle Ballistic Cannon Light Cannon Launcher Rocket Launcher Build | -11 -10 -10 -10 ------- Run | Yrd Mat Min Sub Slots Evolved . | . . . . Power . | . . . . Propulsion . | . . . . Utility . | . . . . Weapon . | . . . . Parts Attached 26 | 6 15 2 3 Power 4 | 1 3 . . Engine 4 | 1 3 . . Core . | . . . . Reactor . | . . . . Propulsion 9 | 2 6 . 1 Treads 3 | 2 . . 1 Leg 6 | . 6 . . Wheel . | . . . . Hover . | . . . . Flight . | . . . . Utility 4 | 1 3 . . Device 1 | . 1 . . Storage 2 | 1 1 . . Processor 1 | . 1 . . Hackware . | . . . . Protection . | . . . . Artifact . | . . . . Weapon 9 | 2 3 2 2 Energy Gun . | . . . . Energy Cannon 2 | . 1 1 . Ballistic Gun 5 | 2 1 . 2 Ballistic Cannon 1 | . 1 . . Launcher 1 | . . 1 . Special Weapon . | . . . . Impact Weapon . | . . . . Slashing Weapon . | . . . . Piercing Weapon . | . . . . Special Melee Weapon . | . . . . Unidentified Prototypes 1 | . 1 . . Parts Lost 8 | . 2 1 5 Power 1 | . 1 . . Propulsion 4 | . 1 . 3 Utility . | . . . . Weapon 3 | . . 1 2 Highest Loss Streak 2 | . 1 1 2 To Critical Strikes 1 | . . . 1 Average Slot Usage (%) 95 | . 97 100 78 Engine 13 | . 13 14 14 Treads 5 | . 12 . 2 Leg 18 | . 14 28 5 Storage 13 | . 13 14 14 Processor 13 | . 11 14 14 Energy Cannon 10 | . 10 14 4 Ballistic Gun 9 | . 14 . 18 Ballistic Cannon 5 | . 3 11 . Launcher 1 | . . 2 3 Naked Turns . | . . . . Heaviest Build 38 | 12 34 38 38 Greatest Support 40 | 40 40 20 20 Greatest Overweight (x) 10 | . 4 1 10 Average Overweight (x) 1 | . . 1 5 Largest Inventory Capacity 15 | 8 15 15 15 Average Capacity 12 | 6 9 15 15 Most Carried 11 | 5 9 11 9 Average Carried 7 | 1 4 10 6 Final Capacity 15 | 8 15 15 15 Final Carried 9 | 2 9 9 6 Class Distribution -------------------- 85% | Mutant 14% | Scavenger-Mutant Dominant Class ---------------- Mutant | -10/Materials Mutant | -10/Mines Mutant | -10/Subcaves Resources | -11 -10 -10 -10 ----------- Run | Yrd Mat Min Sub Matter Collected 770 | 260 388 77 45 Remotely . | . . . . Salvage Created 853 | . 666 121 66 Parts 65 | . 46 9 10 Haulers Intercepted . | . . . . Recyclers Shooed . | . . . . Parts Field Recycled . | . . . . Retrieved Matter . | . . . . Parts Self-Destructed 4 | . . . 4 Prevented . | . . . . Kills | -11 -10 -10 -10 ------- Run | Yrd Mat Min Sub Combat Hostiles Destroyed 27 | . 17 5 5 Guns 12 | . 11 . 1 Cannons 12 | . 6 5 1 AOE 3 | . . . 3 Classes Destroyed 5 | . 4 . 1 Worker 1 | . 1 . . Watcher 2 | . 2 . . Swarmer 10 | . 3 3 4 Grunt 16 | . 14 2 . Subdweller 1 | . . . 1 Best Kill Streak 5 | . 5 3 4 Combat Bots Only 5 | . 5 3 4 Max Kills in Single Turn 2 | . 1 1 2 Gunslinging . | . . . . Exploded 2 | . . . 2 Melee . | . . . . Uniques/NPCs Destroyed . | . . . . Combat | -11 -10 -10 -10 -------- Run | Yrd Mat Min Sub Hostile Shots Fired 173 | . 82 24 67 Missed 61 | . 26 10 25 Damage Taken 1506 | . 667 195 644 Core 261 | . 177 34 50 Absorbed by Shields . | . . . . Core Remaining (%) 100 | 100 . . . Volleys Fired 77 | . 57 12 8 Largest 2 | . 2 2 2 Hottest 95 | . 95 95 93 Shots Fired 152 | . 114 24 14 Gun 98 | . 92 . 6 Cannon 51 | . 22 24 5 Launcher 3 | . . . 3 Special . | . . . . Kinetic 111 | . 93 12 6 Thermal 38 | . 21 12 5 Explosive 3 | . . . 3 Electromagnetic . | . . . . Robot Hit Streak 15 | . 15 8 7 Robot Miss Streak 7 | . 7 1 1 Penetration Max . | . . . . Secondary Targets . | . . . . Shots Hit Robots 98 | . 73 15 10 Core Hits 41 | . 28 6 7 Critical Kills . | . . . . Critical Parts Destroyed 1 | . 1 . . Critical Strikes 1 | . 1 . . Destroy 1 | . 1 . . Melee Attacks . | . . . . Impact . | . . . . Slashing . | . . . . Piercing . | . . . . Sneak Attacks . | . . . . Combat Hostiles . | . . . . Follow-up Attacks . | . . . . Damage Inflicted 1597 | . 1021 263 313 Guns 843 | . 775 . 68 Cannons 549 | . 243 260 46 Explosions 199 | . . . 199 Melee . | . . . . Ramming 6 | . 3 3 . Kinetic 993 | . 790 135 68 Thermal 399 | . 228 125 46 Explosive 199 | . . . 199 Electromagnetic . | . . . . Impact . | . . . . Slashing . | . . . . Piercing . | . . . . Highest Corruption . | . . . . Average Corruption . | . . . . Corruption Purged . | . . . . Corruption Blocked . | . . . . Overload Shots . | . . . . Overflow Damage 25 | . . . 25 Projectiles . | . . . . Explosions 25 | . . . 25 Melee . | . . . . Knockbacks 3 | . . 3 . Impact . | . . . . Kinetic 3 | . . 3 . Secondary . | . . . . Self-Inflicted Damage 63 | . . . 63 Shots 2 | . . . 2 Rammed 1 | . 1 . . Targets Rammed 2 | . 1 1 . Kicked 1 | . . 1 . Crushed . | . . . . Highest Temperature 253 | . 138 253 4 Average Temperature 83 | . 54 123 4 Received Heat Transfer 612 | . 327 63 222 Effects 1 | . . 1 . Energy Bleed 1 | . . 1 . Siege Activations . | . . . . Robots Corrupted . | . . . . Combat Hostiles . | . . . . Parts Fried . | . . . . Impact Corruptions . | . . . . Robots Melted . | . . . . Combat Hostiles . | . . . . Parts Melted 1 | . . 1 . Heat Transferred 814 | . 481 259 74 Parts Sabotaged . | . . . . Parts Stolen . | . . . . Parts Stripped . | . . . . Power Chain Reactions . | . . . . Alert | -11 -10 -10 -10 ------- Run | Yrd Mat Min Sub Peak Influence 271 | . 271 150 . Initial 18 | . . 18 . Average 74 | . 111 38 . Maximum Alert Level 1 | . 1 . . Low Security (%) 94 | 100 89 100 . Level 1 5 | . 10 . . Level 2 . | . . . . Level 3 . | . . . . Level 4 . | . . . . Level 5 . | . . . . High Security . | . . . . Max Security . | . . . . Squads Dispatched 5 | . 5 . . Investigation 3 | . 3 . . Extermination . | . . . . Reinforcement 2 | . 2 . . Assault . | . . . . Garrison . | . . . . Intercept . | . . . . Searches Triggered . | . . . . Construction Impeded . | . . . . Haulers Reinforced . | . . . . Active Scanning Responses . | . . . . Cargo Convoy Interrupts . | . . . . Stealth | -11 -10 -10 -10 --------- Run | Yrd Mat Min Sub Distress Signals 1 | . 1 . . Communications Jammed . | . . . . Distress Signals . | . . . . Times Spotted 39 | . 24 5 10 Peak Tracking Total 5 | . 3 3 5 Tactical Retreats 3 | . . . 3 Traps | -11 -10 -10 -10 ------- Run | Yrd Mat Min Sub Traps Triggered 4 | . 4 . . Indirectly . | . . . . Trap Hack Attempts . | . . . . Triggered . | . . . . Disarmed . | . . . . Reprogrammed . | . . . . Reused . | . . . . Traps Extracted . | . . . . Installed . | . . . . Triggered . | . . . . Machines | -11 -10 -10 -10 ---------- Run | Yrd Mat Min Sub Machines Disabled 1 | . . 1 . Max in Single Turn 1 | . . 1 . Machines Repaired . | . . . . Machines Dismantled . | . . . . Machines Sabotaged . | . . . . Overloaded Fab Kills . | . . . . Hacking | -11 -10 -10 -10 --------- Run | Yrd Mat Min Sub Machines Accessed 8 | . 6 2 . Terminals 5 | . 5 . . Fabricators . | . . . . Repair Stations . | . . . . Recycling Units 1 | . 1 . . Scanalyzers . | . . . . Garrison Access . | . . . . Total Hacks 14 | . 12 2 . Successful 8 | . 6 2 . Failed 6 | . 6 . . Catastrophic 2 | . 2 . . Database Lockouts . | . . . . Manual . | . . . . Terminals 11 | . 11 . . Fabricators . | . . . . Repair Stations . | . . . . Recycling Units 1 | . 1 . . Scanalyzers . | . . . . Garrison Access . | . . . . Terminal Hacks 7 | . 5 2 . Record 1 | . 1 . . Open Door 2 | . . 2 . Level Access Points 1 | . 1 . . Alert Level 1 | . 1 . . Hauler Manifests 1 | . 1 . . Zone Layout 1 | . 1 . . Fabricator Hacks . | . . . . Repair Station Hacks . | . . . . Recycling Unit Hacks 1 | . 1 . . Report Inventory 1 | . 1 . . Scanalyzer . | . . . . Garrison Access Hacks . | . . . . Unauthorized Hacks . | . . . . Terminals . | . . . . Fabricators . | . . . . Repair Stations . | . . . . Recycling Units . | . . . . Scanalyzers . | . . . . Garrison Access . | . . . . Data Cores Recovered . | . . . . Used . | . . . . Hacking Detections 3 | . 3 . . Full Trace Events 1 | . 1 . . Feedback Events . | . . . . Feedback Blocked . | . . . . Robot Schematics Acquired . | . . . . Robots Built . | . . . . Authchips . | . . . . Time . | . . . . Total Robot Build Rating . | . . . . Part Schematics Acquired . | . . . . Parts Built . | . . . . Authchips . | . . . . Time . | . . . . Total Part Build Rating . | . . . . Parts Repaired . | . . . . Time . | . . . . Parts Recycled . | . . . . Recycled Matter . | . . . . Retrieved Matter . | . . . . Retrieved Components . | . . . . Parts Scanalyzed . | . . . . Part Schematics Acquired . | . . . . Parts Damaged . | . . . . Bothacking | -11 -10 -10 -10 ------------ Run | Yrd Mat Min Sub Used RIF Installer . | . . . . Robots Hacked . | . . . . Non-combat . | . . . . Combat . | . . . . Robot Hacks Applied . | . . . . Relay Couplers Released . | . . . . Fabnet Peak Effective % . | . . . . Robots Rewired . | . . . . Allies Hacked . | . . . . Hacks Repelled . | . . . . Allies | -11 -10 -10 -10 -------- Run | Yrd Mat Min Sub Total Allies . | . . . . Largest Group . | . . . . Highest-Rated Group . | . . . . Highest-Rated Ally . | . . . . Total Orders . | . . . . Ally Attacks . | . . . . Total Damage . | . . . . Kills . | . . . . Allies Corrupted . | . . . . Allies Melted . | . . . . Intel | -11 -10 -10 -10 ------- Run | Yrd Mat Min Sub Robot Analysis Total . | . . . . Derelict Logs Recovered . | . . . . Drone Launches . | . . . . Drone Recoveries . | . . . . Exploration | -11 -10 -10 -10 ------------- Run | Yrd Mat Min Sub Turns Passed 3035 | 58 1254 1195 528 Spaces Moved 1451 | 40 669 605 137 Core 84 | 17 5 . 62 Treads 330 | 23 262 . 45 Legs 1037 | . 402 605 30 Wheels . | . . . . Hover . | . . . . Flight . | . . . . Fastest Speed 50 | 50 120 190 190 Average Speed 188 | 113 154 190 369 Slowest Speed 550 | 160 250 190 550 Overloaded Moves . | . . . . Propulsion Burnouts . | . . . . Robots Hopped . | . . . . Cave-ins Triggered . | . . . . Exploration Rate (%) 47 | 3 83 95 8 Regions Visited 3 Branch Regions 2 Pre-discovered Areas . | . . . . Known Exits Taken 2 | . 1 1 . Unknown Exits Taken 1 | 1 . . . Scrap Searched . | . . . . Spaces Dug . | . . . . Terrain Destroyed 22 | . . . 22 Melee . | . . . . Projectile . | . . . . AOE 22 | . . . 22 Terrain Rammed . | . . . . Walls Destroyed . | . . . . Machines Disabled . | . . . . Actions | -11 -10 -10 -10 --------- Run | Yrd Mat Min Sub Total 1612 | 53 784 627 148 Wait 13 | . 10 3 . Move 1448 | 39 668 604 137 Hop . | . . . . Pick Up 33 | 8 22 3 . Fast Attach . | . . . . Attach 26 | 6 15 2 3 Detach 2 | . 2 . . Swap . | . . . . Drop 11 | . 9 2 . Fire 77 | . 57 12 8 Melee . | . . . . Ram . | . . . . Kick 1 | . . 1 . Crush 1 | . 1 . . Escape Stasis . | . . . . Rewire . | . . . . Trap . | . . . . Miscellaneous . | . . . . Route ------- -11/Scrapyard -10/Materials (discovered 4 exits: *Mat x3 / *Min) -10/Mines (discovered 2 exits: *Mat / *Sub) -10/Subcaves History --------- Turn | Location | Event 6 | -11/Scrapyard | Discovered new exit (range 15) 59 | -11/Scrapyard | Entered Materials 198 | -10/Materials | Discovered new exit (range 11) 268 | -10/Materials | Identified exit to Mines 312 | -10/Materials | Build established: Mutant 419 | -10/Materials | Discovered new exit (range 13) 439 | -10/Materials | Identified exit to Materials 873 | -10/Materials | Core integrity fell below 50% 1313 | -10/Materials | Entered Mines 1438 | -10/Mines | Found the Drone Emporium 1446 | -10/Mines | Found Prototype Device 1586 | -10/Mines | A weapon hastily lodged in a ceiling crevice suddenly fell to the ground 2102 | -10/Mines | Met a Derelict who couldn't figure out how to use a Trap Extractor 2103 | -10/Mines | Core integrity fell below 20% 2164 | -10/Mines | Discovered exit to Materials (range 5) 2276 | -10/Mines | Received a Rocket Launcher from a helpful Derelict 2504 | -10/Mines | Discovered new exit (range 3) 2506 | -10/Mines | Identified exit to Subcaves 2508 | -10/Mines | Entered Subcaves 3036 | -10/Subcaves | Destroyed by KH-38M(R) with Subdweller Laser Last Messages --------------- 02572_ The unstable cave ceiling collapses. 02573_ Flight Unit fries itself beyond repair. 02578_ Subatomizers dissect the Flight Unit. 02580_ Flight Unit fries itself beyond repair. 02584_ The unstable cave ceiling collapses. 02631_ YI-GK0(R) suffers critical hit (Destroy). 02631_ YI-GK0(R) destroyed. 02633_ V1-MBV(R) affixes Scrap Shield Fragment to Scrap Shield. 02642_ Aluminum Leg destroyed. 02647_ Rocket Launcher destroyed. 02683_ Lgt. Treads destroyed. 02687_ Critical hit (Destroy). 02687_ Ion Cannon destroyed. 02695_ V1-MBV(R) destroyed. 02701_ Subatomizers dissect the Sub. Optics. 02725_ Acquired 45 matter. 02726_ Subatomizers dissect the Sub. Laser. 02802_ Subatomizers dissect the Sub. Monowheel. Map ----- +----------------------------------------------------+ | ?????# ##### #??????????????????????? | | ????## #??????????????????????? | | ????#" #??????????????????????? | | ???# "" [ #??????????????????????? | | # " "### #### ###!&##??????????????????????? | | "" #??####??##### &#???????? ?????????????? | | # "#??????????###&&&#??????? ????????????? | | # ! "??????????## #??##### ????????????? | | ""!%= ""###????### ### ????????????? | | ?"" * ? " #??## ### ?????????????? | | ??" "" ### #### ?????????????? | | ??# " """ ## #????????????????? | | ??#????? ##" ## #????????????????? | | ??????????## #% #????????????????? | | ???????????# ## ##???????????????? | | ???????????## #### ###?????????????? | | ????????????####??#### #?????????????? | | ????????????????????# # ##?????????????? | | ????????????????????### # ## #????#????????? | | ??????????????????????### # R ## #????????? | | ???????????????????????## R #????????? | | ??????????????????????## ### #????????? | | ??????????????????????# #??????????????? | | ?????????????????##???## ###??????????????? | | ????????????????## ##??## # #????????????????? | | ????????????????# ####@ ####????????????????? | | ???????????????## #???????????????????? | | ???????????????# #???????????????????? | | ??????????????## ### #???????????????????? | | ??????????????# ######???????????????????? | | ??????????????## ## #####????????????????? | | ???????????????#### #????????????????? | | ??????????????????# ## #????????????????? | | ?????????????????# ?## # ##????????????????? | | ?????????????????##??# ######?????????????????? | | ?????????????????????## ##?????????????????????? | | ????????? ??????## #?????????????????????? | | ???????????? # #?????????????????????? | | ??????????????????# #?????????????????????? | | ??????????????????## # #????????????????????? | | ???????????????????##### ??????????????????? | | ???????????????????????## # # #?????????????????? | | ????????????????????????? ###?#?????????????????? | | ?????????????????????????# #?????????????????????? | | ??????????????????????????##?????????????????????? | | ?????????????????????????????????????????????????? | | ?????????????????????????????????????????????????? | | ?????????????????????????????????????????????????? | | ?????????????????????????????????????????????????? | | ?????????????????????????????????????????????????? | +----------------------------------------------------+ Best States ------------- Heat Dissipation 25 Energy Generation 14 Energy Capacity 280 Matter Stores 300 Matter Capacity 300 Sight Range 16 Terrain Scan Density 10 ECM Strength 1 Evasion (%) 55 Recoil Reduction 2 Item Schematics ----------------- None Robot Schematics ------------------ None Fabricated ------------ Nothing Alien Tech Used ----------------- None Achievements -------------- Risk Taker Shopping List Challenges ------------ None Game ------ Seed SystemGrapheneBay Manual? 0 Play Time 00:27:32 Cumulative 2.5 hours Start 2024.04.05 @ 13:15:03 End 2024.04.05 @ 13:41:38 Sessions 1 Manual Loads 0 Difficulty Rogue Special Mode None Game No. 4 Rogue 2 Adventurer 2 Explorer 0 Win Type - Total 0 Types 0/0/0/0/0/0/0/0/0 Lore% 2 Gallery% 4 Achievement% 5 Wizard Run 0 Options --------- Layout 1 ASCII 0 Keyboard 0 Movement Mouse Keybinds 0 Fullscreen 2 Font 24/Terminus Map View 50x35 Zoom Use 0% Tactical HUD 1 Map Filters NONE Filters NONE Steam 0 RUN: 16db17ae-dfc0-4f0c-989a-d4f67df1a1c5